[Event "Moscow-ch Men 2019"]
[Site "Moscow"]
[Date "2019.03.30"]
[Round "1.32"]
[White "Akhmedov, David"]
[Black "Yakimenko, Alexander A."]
[Result "0-1"]
[ECO "A00"]
[WhiteElo "1710"]
[BlackElo "2082"]
[Annotator "NA RC"]
[PlyCount "100"]
[EventDate "2019.03.30"]
[EventType "swiss"]
[EventCountry "RUS"]
[SourceTitle "playchess.com"]
[Source "ChessBase"]
[SourceQuality "1"]
[TimeControl "5400+30"]

1. e4 e5 2. Nf3 Nc6 3. Nc3 Nf6 4. d4 exd4 5. Nxd4 Bb4 6. Nxc6 bxc6 7. Bd3 d5 8. exd5 cxd5 9. O-O O-O 10. Bg5 Be6 11. h3 Rb8 12. Qf3 Be7 13. b3 h6 14. Bh4 Rb4 15. Bg3 Nh7 16. Nb5 c6 17. Bxh7+ Kxh7 18. Qd3+ Kg8 19. Nd4 Bd7 20. Nf5 Bxf5 21. Qxf5 Bf6 22. Rad1 Re8 23. c4 Rb7 24. Qg4 Qa5 25. cxd5 cxd5 26. Bf4 Qxa2 27. Bxh6 Qxb3 28. Bg5 Bxg5 29. Qxg5 Rd7 30. Rd4 Re4 31. Rc1 Qb7 32. Rd3 d4 33. Rb3 Qd5 34. Rb8+ Kh7 35. Qg3 Qe5 36. Qb3 Re1+ 37. Rxe1 Qxe1+ 38. Kh2 Qe5+ 39. g3 d3 40. Rb4 g6 41. Rh4+ Kg7 42. Qc4 Qf6 43. Rf4 Qxf4 44. Qxf4 d2 45. Qe5+ f6 46. Qe2 d1=Q 47. Qxd1 Rxd1 48. Kg2 a5 49. Kf3 a4 50. Ke2 Rd8 0-1

[Event "Moscow-ch Men 2019"]
[Site "Moscow"]
[Date "2019.03.31"]
[Round "2.24"]
[White "Zhuk, Kirill"]
[Black "Bogaudinov, Rushan"]
[Result "1-0"]
[ECO "A00"]
[WhiteElo "1974"]
[BlackElo "2096"]
[Annotator "NA RC"]
[PlyCount "195"]
[EventDate "2019.03.30"]
[EventType "swiss"]
[EventCountry "RUS"]
[SourceTitle "playchess.com"]
[Source "ChessBase"]
[SourceQuality "1"]
[TimeControl "5400+30"]

1. e4 c5 2. Nf3 d6 3. d4 cxd4 4. Nxd4 Nf6 5. f3 g6 6. c4 Bg7 7. Nc3 Nc6 8. Be3 O-O 9. Qd2 Re8 10. Be2 Bd7 11. O-O Ne5 12. Rac1 Rc8 13. b3 Qa5 14. Rfd1 h5 15. Qe1 a6 16. Nd5 Qxe1+ 17. Rxe1 Nxd5 18. cxd5 e6 19. dxe6 fxe6 20. h3 d5 21. f4 Nc6 22. e5 Bh6 23. Nxc6 Bxc6 24. g3 Red8 25. Red1 Bf8 26. Bd4 Ba3 27. Rc2 Bb5 28. Rxc8 Rxc8 29. Bxb5 axb5 30. Rd2 Bb4 31. Rf2 Be1 32. Rf3 Rc2 33. Kf1 Bb4 34. Rf2 Rc1+ 35. Ke2 Re1+ 36. Kf3 Rd1 37. Ke3 Rh1 38. Rc2 Rxh3 39. Rc8+ Kf7 40. Kf3 Be1 41. Rc7+ Ke8 42. Bc5 Rxg3+ 43. Ke2 Bc3 44. Re7+ Kd8 45. Rxe6 Rg4 46. Rd6+ Ke8 47. Rf6 d4 48. Kd3 b6 49. Bxd4 Bxd4 50. Kxd4 h4 51. Rxb6 h3 52. Rb8+ Ke7 53. Rh8 Rxf4+ 54. Ke3 Rf5 55. Rxh3 Rxe5+ 56. Kf4 Kf6 57. Rh8 g5+ 58. Kf3 Rc5 59. Kg4 Ke5 60. Kxg5 Kd4+ 61. Kf4 Kc3 62. Ke4 b4 63. Ra8 Rc7 64. Kd5 Rd7+ 65. Kc5 Rd2 66. Rh8 Rxa2 67. Rh3+ Kb2 68. Kxb4 Ra8 69. Rh2+ Kb1 70. Rh5 Kb2 71. Rh2+ Kb1 72. Rh5 Kb2 73. Rb5 Rc8 74. Rb6 Ka2 75. Ra6+ Kb2 76. Ka4 Rb8 77. b4 Kc3 78. Rc6+ Kd4 79. b5 Ra8+ 80. Kb4 Kd5 81. Rh6 Ra1 82. b6 Ra2 83. Kb5 Ra1 84. Rh2 Rb1+ 85. Ka6 Kc6 86. Rc2+ Kd7 87. Kb7 Rb3 88. Rd2+ Ke8 89. Ka7 Ra3+ 90. Kb8 Rb3 91. b7 Ke7 92. Rd4 Ra3 93. Rd5 Ke6 94. Rd2 Ra1 95. Rd4 Ra2 96. Kc7 Ke5 97. Rb4 Rc2+ 98. Kb6 1-0

[Event "Moscow-ch Men 2019"]
[Site "Moscow"]
[Date "2019.03.31"]
[Round "2.27"]
[White "Israfilov, Ali"]
[Black "Anfinogenov, Artem"]
[Result "1/2-1/2"]
[ECO "A00"]
[WhiteElo "1835"]
[BlackElo "2091"]
[Annotator "NA RC"]
[PlyCount "105"]
[EventDate "2019.03.30"]
[EventType "swiss"]
[EventCountry "RUS"]
[SourceTitle "playchess.com"]
[Source "ChessBase"]
[SourceQuality "1"]
[TimeControl "5400+30"]

1. e4 e5 2. Nf3 Nc6 3. Bb5 Nf6 4. O-O Nxe4 5. d4 Nd6 6. Bxc6 dxc6 7. dxe5 Nf5 8. Qxd8+ Kxd8 9. Rd1+ Ke8 10. Nc3 h6 11. h4 Be7 12. g3 Be6 13. Kg2 Rd8 14. Bf4 Rg8 15. h5 Bb4 16. g4 Ne7 17. Kg3 Bxc3 18. bxc3 g6 19. Rxd8+ Kxd8 20. hxg6 Rxg6 21. g5 Nf5+ 22. Kh2 Bd5 23. gxh6 Nxh6 24. Ng5 Ng4+ 25. Kg3 Nxe5 26. Bxe5 Rxg5+ 27. Kf4 Rg2 28. Ke3 Rg4 29. Bf4 Kd7 30. a3 Rg6 31. Re1 c5 32. Rd1 Re6+ 33. Kd2 Re4 34. Be3 Kc6 35. Kc1 Rg4 36. Kb2 a5 37. Re1 Bf3 38. Bh6 Be4 39. Rd1 Bd5 40. Re1 Rg6 41. Bf4 Rf6 42. Bg3 Be6 43. Rd1 b6 44. Rd8 Kb5 45. Rd2 c6 46. Rd6 Rf3 47. Rd8 Kc4 48. Rh8 Bg4 49. Re8 Be6 50. Rh8 Kb5 51. Rd8 Bd5 52. Rh8 Rf6 53. Re8 1/2-1/2

[Event "Moscow-ch Men 2019"]
[Site "Moscow"]
[Date "2019.03.31"]
[Round "2.28"]
[White "Brygov, Igor"]
[Black "Lupolov, Boris"]
[Result "0-1"]
[ECO "A00"]
[WhiteElo "2052"]
[BlackElo "1907"]
[Annotator "NA RC"]
[PlyCount "88"]
[EventDate "2019.03.30"]
[EventType "swiss"]
[EventCountry "RUS"]
[SourceTitle "playchess.com"]
[Source "ChessBase"]
[SourceQuality "1"]
[TimeControl "5400+30"]

1. Nf3 Nf6 2. c4 e6 3. g3 b6 4. Bg2 Bb7 5. O-O Be7 6. d4 O-O 7. Nc3 Ne4 8. d5 Nxc3 9. bxc3 Bf6 10. e4 Bxc3 11. Rb1 exd5 12. exd5 d6 13. Nd4 Ba6 14. Qd3 Bxd4 15. Qxd4 Nd7 16. Bb2 f6 17. f4 Re8 18. Bh3 Nc5 19. Bf5 Bc8 20. Bc2 Re2 21. Rf2 Rxc2 22. Rxc2 Bf5 23. Rcc1 Bxb1 24. Rxb1 Qe7 25. Bc3 Qe4 26. Re1 Qxd4+ 27. Bxd4 Nd7 28. Re7 Rd8 29. g4 Kf8 30. Re6 Re8 31. Kf2 Kf7 32. f5 Nf8 33. Rxe8 Kxe8 34. h4 Nd7 35. g5 Ne5 36. Kg3 Ke7 37. c5 dxc5 38. Bxe5 fxe5 39. Kf3 c4 40. Ke4 b5 41. h5 c3 42. Kd3 b4 43. f6+ gxf6 44. g6 hxg6 0-1

[Event "Moscow-ch Men 2019"]
[Site "Moscow"]
[Date "2019.03.31"]
[Round "2.29"]
[White "Grigoryev, Vladislav"]
[Black "Paster, Arkady M."]
[Result "0-1"]
[ECO "A00"]
[WhiteElo "1741"]
[BlackElo "2070"]
[Annotator "NA RC"]
[PlyCount "106"]
[EventDate "2019.03.30"]
[EventType "swiss"]
[EventCountry "RUS"]
[SourceTitle "playchess.com"]
[Source "ChessBase"]
[SourceQuality "1"]
[TimeControl "5400+30"]

1. Nf3 d5 2. d4 Nf6 3. c4 c6 4. Qc2 g6 5. Bf4 Bg7 6. e3 O-O 7. Nc3 Bg4 8. Ne5 Bf5 9. Bd3 Bxd3 10. Qxd3 dxc4 11. Qxc4 Nbd7 12. h3 Nb6 13. Qb3 Nfd5 14. Bg3 e6 15. O-O a5 16. Ne4 f6 17. Nd3 a4 18. Qc2 f5 19. Nec5 Qe7 20. Be5 Bh6 21. b3 a3 22. Rae1 Nd7 23. Nxd7 Qxd7 24. Nc5 Qe7 25. Qc4 b6 26. Nd3 Qd7 27. Bg3 Bg7 28. Be5 Bh6 29. Bg3 Rfc8 30. Ne5 Qe8 31. Re2 b5 32. Qc5 Bf8 33. Qc1 Bh6 34. Qb1 Nc3 35. Qd3 Nxe2+ 36. Qxe2 c5 37. Rd1 cxd4 38. Rxd4 Rd8 39. Rb4 Rd5 40. Rd4 Rxd4 41. exd4 f4 42. Bh2 Rc8 43. g3 Rc1+ 44. Kg2 Qa8+ 45. Nf3 Qc6 46. gxf4 Rc2 47. Qe5 Bg7 48. Qb8+ Bf8 49. f5 Rc3 50. Qf4 exf5 51. Bg3 Qd5 52. h4 h6 53. Bh2 Bd6 0-1

[Event "Moscow-ch Men 2019"]
[Site "Moscow"]
[Date "2019.03.31"]
[Round "2.30"]
[White "Gerasimov, Vadim"]
[Black "Fedorov, Nikita"]
[Result "0-1"]
[ECO "A00"]
[WhiteElo "1688"]
[BlackElo "2030"]
[Annotator "NA RC"]
[PlyCount "100"]
[EventDate "2019.03.30"]
[EventType "swiss"]
[EventCountry "RUS"]
[SourceTitle "playchess.com"]
[Source "ChessBase"]
[SourceQuality "1"]
[TimeControl "5400+30"]

1. d4 e6 2. c4 b6 3. Nf3 Bb7 4. g3 Bb4+ 5. Bd2 Bxd2+ 6. Nbxd2 f5 7. Bg2 Nf6 8. O-O O-O 9. Qc2 d6 10. Rfd1 Qe8 11. Ne1 Bxg2 12. Nxg2 Nbd7 13. e3 Qh5 14. Nf4 Qf7 15. Nf3 Ne4 16. d5 e5 17. Ne6 Rfc8 18. Nfg5 Nxg5 19. Nxg5 Qg6 20. Ne6 Nf8 21. Nxf8 Rxf8 22. b4 Qg4 23. Kg2 e4 24. Re1 Qf3+ 25. Kg1 Qh5 26. Qe2 Qh3 27. Qf1 Qh6 28. Rac1 Rae8 29. Rc2 g5 30. Qg2 Kh8 31. c5 f4 32. exf4 gxf4 33. cxb6 f3 34. Qf1 cxb6 35. Re3 Qh5 36. h3 Qxd5 37. Rc7 Qe5 38. Qd1 d5 39. Rd7 Rd8 40. Rxd8 Rxd8 41. Kh2 d4 42. Re1 Qd5 43. Qd2 Qe5 44. Rc1 Re8 45. Re1 e3 46. Qd3 Qe4 47. Qa6 Qc2 48. Qf1 e2 49. Qh1 Qe4 50. Rc1 e1=Q 0-1

[Event "Moscow-ch Men 2019"]
[Site "Moscow"]
[Date "2019.03.31"]
[Round "2.31"]
[White "Razumovskiy, Mikhail"]
[Black "Zurabian, Vage"]
[Result "0-1"]
[ECO "A00"]
[WhiteElo "2024"]
[BlackElo "1842"]
[Annotator "NA RC"]
[PlyCount "100"]
[EventDate "2019.03.30"]
[EventType "swiss"]
[EventCountry "RUS"]
[SourceTitle "playchess.com"]
[Source "ChessBase"]
[SourceQuality "1"]
[TimeControl "5400+30"]

1. d4 d6 2. c4 e5 3. Nf3 e4 4. Ng5 Nf6 5. Nc3 Qe7 6. Qc2 Bf5 7. f3 Nc6 8. e3 Nxd4 9. Qd1 Nc6 10. g4 Bg6 11. f4 h6 12. Nh3 O-O-O 13. Nd5 Nxd5 14. cxd5 Nb8 15. Qd4 Qh4+ 16. Nf2 c5 17. Qa4 a6 18. Bh3 Kc7 19. Bd2 Nd7 20. Ba5+ Kc8 21. g5 b5 22. Qc2 Re8 23. Rg1 hxg5 24. Rxg5 Be7 25. Rg2 Qh5 26. Qd2 Bh4 27. Bg4 Bxf2+ 28. Kxf2 Qh4+ 29. Kg1 f5 30. Be2 Bh5 31. Bxh5 Qxh5 32. a4 b4 33. Rc1 Qf3 34. Rg3 Qh5 35. Bxb4 g5 36. Bc3 gxf4 37. exf4 Rhg8 38. Bd4 Rxg3+ 39. hxg3 Rg8 40. Rc3 Kd8 41. Bf2 Rh8 42. Kf1 Qh1+ 43. Ke2 Rh2 44. Qe3 Qb1 45. Qc1 Qa2 46. Qd2 Nf6 47. Rc2 Qxa4 48. Kf1 Ng4 49. b3 Qb5+ 50. Qe2 Rxf2+ 0-1

[Event "Moscow-ch Men 2019"]
[Site "Moscow"]
[Date "2019.03.31"]
[Round "2.32"]
[White "Kudryaev, Ivan"]
[Black "Pavlov, Mark"]
[Result "0-1"]
[ECO "A00"]
[WhiteElo "1692"]
[BlackElo "1989"]
[Annotator "NA RC"]
[PlyCount "100"]
[EventDate "2019.03.30"]
[EventType "swiss"]
[EventCountry "RUS"]
[SourceTitle "playchess.com"]
[Source "ChessBase"]
[SourceQuality "1"]
[TimeControl "5400+30"]

1. d4 Nf6 2. Nf3 g6 3. g3 Bg7 4. Bg2 O-O 5. O-O d6 6. Bg5 h6 7. Bd2 c5 8. dxc5 dxc5 9. Bc3 Nc6 10. Nbd2 Qc7 11. e3 b6 12. a3 Ba6 13. Re1 Rad8 14. Qb1 e5 15. e4 Nd4 16. Bxd4 cxd4 17. Bf1 Bxf1 18. Rxf1 Nd7 19. Ne1 Kh8 20. Qd1 f5 21. Qe2 Qc6 22. Rc1 Nc5 23. f3 fxe4 24. Nxe4 Qd5 25. Nxc5 bxc5 26. Qe4 Qd6 27. Nd3 c4 28. Nf2 Rf5 29. Kg2 Rdf8 30. Nd1 Qf6 31. h4 g5 32. h5 g4 33. f4 Rxh5 34. Nf2 exf4 35. Nxg4 Qf5 36. Rxf4 Qxe4+ 37. Rxe4 Rb5 38. b4 Rbf5 39. Re2 h5 40. Rh1 Kg8 41. Nf2 Rf3 42. Rxh5 Rxa3 43. Ra5 Re3 44. Rd2 c3 45. Rd1 Re2 46. Rf1 Rxc2 47. g4 d3 48. Rf5 Rxf5 49. gxf5 Bd4 50. Kf3 Rxf2+ 0-1

[Event "Moscow-ch Men 2019"]
[Site "Moscow"]
[Date "2019.03.31"]
[Round "2.33"]
[White "Khmelev, Mikhail"]
[Black "Akhmedov, David"]
[Result "1/2-1/2"]
[ECO "A00"]
[WhiteElo "2011"]
[BlackElo "1710"]
[Annotator "NA RC"]
[PlyCount "120"]
[EventDate "2019.03.30"]
[EventType "swiss"]
[EventCountry "RUS"]
[SourceTitle "playchess.com"]
[Source "ChessBase"]
[SourceQuality "1"]
[TimeControl "5400+30"]

1. e4 c5 2. Nf3 d6 3. d4 cxd4 4. Nxd4 Nf6 5. Nc3 a6 6. h3 e6 7. g4 b5 8. Bg2 Bb7 9. O-O Qc7 10. Re1 Be7 11. a4 b4 12. Na2 O-O 13. Bg5 Nbd7 14. Qd2 a5 15. Nb5 Qb8 16. Rad1 Ra6 17. c3 b3 18. Nc1 Nc5 19. Bxf6 Bxf6 20. Qe2 Be7 21. Qc4 Rc8 22. Nxb3 Nxe4 23. Qe2 d5 24. Bxe4 dxe4 25. Nd2 Bc5 26. Nf1 Qf4 27. Nd4 e5 28. Nf5 g6 29. N5e3 Rf6 30. Rd2 Qh6 31. g5 Qxg5+ 32. Qg4 Qxg4+ 33. Nxg4 Re6 34. Rb1 f5 35. Nge3 Ra8 36. b4 axb4 37. cxb4 Rb6 38. Nc4 Rxb4 39. Rxb4 Bxb4 40. Rb2 Rxa4 41. Nb6 Ra1 42. Rxb4 Ba6 43. Nc4 Rc1 44. Ncd2 Bd3 45. Kg2 f4 46. Rxe4 Rxf1 47. Rxe5 Rd1 48. Ne4 Bf1+ 49. Kh2 Rd3 50. h4 Rh3+ 51. Kg1 Bd3 52. h5 Bxe4 53. Rxe4 g5 54. Kg2 Rxh5 55. Kf3 Rh4 56. Re1 Rh6 57. Kg4 Rg6 58. Re5 h6 59. Re1 Rg7 60. Re6 Kh7 1/2-1/2

[Event "Moscow-ch Men 2019"]
[Site "Moscow"]
[Date "2019.03.31"]
[Round "2.34"]
[White "Volkov, Andreiy"]
[Black "Sekoyan, Vachagan"]
[Result "0-1"]
[ECO "A00"]
[WhiteElo "1628"]
[BlackElo "1994"]
[Annotator "NA RC"]
[PlyCount "42"]
[EventDate "2019.03.30"]
[EventType "swiss"]
[EventCountry "RUS"]
[SourceTitle "playchess.com"]
[Source "ChessBase"]
[SourceQuality "1"]
[TimeControl "5400+30"]

1. e4 g6 2. d4 Bg7 3. Nc3 d5 4. exd5 Nf6 5. Bc4 Nbd7 6. Nf3 O-O 7. O-O Nb6 8. Bb3 Nbxd5 9. Nxd5 Nxd5 10. Re1 c6 11. Bg5 Re8 12. Qd2 Bg4 13. c4 Nb6 14. d5 Bxf3 15. gxf3 cxd5 16. cxd5 Qd7 17. Rad1 Nc8 18. Be3 Qh3 19. Qe2 Nd6 20. Bd4 Nf5 21. Bxg7 Nh4 0-1

[Event "Moscow-ch Men 2019"]
[Site "Moscow"]
[Date "2019.03.31"]
[Round "2.35"]
[White "Zaitsev, Vitaly"]
[Black "Usov, Dmitry E."]
[Result "1-0"]
[ECO "A00"]
[WhiteElo "1968"]
[BlackElo "1032"]
[Annotator "NA RC"]
[PlyCount "101"]
[EventDate "2019.03.30"]
[EventType "swiss"]
[EventCountry "RUS"]
[SourceTitle "playchess.com"]
[Source "ChessBase"]
[SourceQuality "1"]
[TimeControl "5400+30"]

1. d4 c6 2. c4 d5 3. Nf3 Nf6 4. e3 Bf5 5. Nc3 e6 6. Be2 Bb4 7. O-O O-O 8. a3 Bxc3 9. bxc3 Nbd7 10. a4 Qc7 11. Ba3 Rfe8 12. Nh4 Bg6 13. Nxg6 hxg6 14. f4 Ne4 15. Qc2 c5 16. Rfc1 Nef6 17. Rab1 b6 18. Bf3 Rac8 19. Be2 Qb7 20. a5 Qa8 21. Bf3 cxd4 22. cxd4 Qc6 23. c5 b5 24. g4 a6 25. g5 Ne4 26. Bxe4 dxe4 27. h4 Kh7 28. Qe2 Rh8 29. h5 f6 30. Kg2 fxg5 31. fxg5 Qd5 32. Qg4 gxh5 33. Qxh5+ Kg8 34. Qg4 g6 35. c6 Rxc6 36. Rxc6 Qxc6 37. Rc1 Qd5 38. Rc2 Rh5 39. Be7 Kf7 40. Bd8 Qf5 41. Qg3 Qd5 42. Qc7 Ke8 43. Qc8 Kf7 44. Rf2+ Kg7 45. Bf6+ Nxf6 46. gxf6+ Kh6 47. Qf8+ Kg5 48. f7 Qd7 49. Qc5+ e5 50. Qxe5+ Kh6 51. f8=Q+ 1-0

[Event "Moscow-ch Men 2019"]
[Site "Moscow"]
[Date "2019.04.02"]
[Round "4.16"]
[White "Pavlov, Mark"]
[Black "Yeritsyan, Aram"]
[Result "0-1"]
[ECO "D05"]
[WhiteElo "1989"]
[BlackElo "2301"]
[Annotator "RC"]
[PlyCount "156"]
[EventDate "2019.03.30"]
[EventType "swiss"]
[EventCountry "RUS"]
[SourceTitle "playchess.com"]
[Source "ChessBase"]
[SourceQuality "1"]
[TimeControl "5400+30"]

1. d4 {[%emt 0:00:00]} Nf6 {[%emt 0:00:00]} 2. Nf3 {[%emt 0:00:00]} e6 {[%emt 0:00:00]} 3. e3 {[%emt 0:00:00]} c5 {[%emt 0:00:00]} 4. Bd3 {[%emt 0:00:02]} d5 {[%emt 0:00:00]} 5. b3 {[%emt 0:00:16]} Nbd7 {[%emt 0:00:01]} 6. O-O {[%emt 0:00:14]} g6 {[%emt 0:00:35]} 7. Bb2 {[%emt 0:00:05]} Bg7 {[%emt 0:00:04]} 8. c4 {[%emt 0:01:27]} O-O {[%emt 0:00:17]} 9. Qe2 {[%emt 0:00:46]} b6 {[%emt 0:00:27]} 10. Nc3 {[%emt 0:04:05]} Bb7 {[%emt 0:09:01]} 11. Rad1 {[%emt 0:08:21]} cxd4 {[%emt 0:01:44]} 12. exd4 {[%emt 0:00:20]} Re8 {[%emt 0:02:10]} 13. Nb5 {[%emt 0:07:37]} Bf8 {[%emt 0:00:17]} 14. Ne5 {[%emt 0:02:16]} a6 {[%emt 0:01:13]} 15. Nc3 {[%emt 0:00:44]} Bg7 {[%emt 0:09:10]} 16. Nb1 {[%emt 0:04:04]} Rc8 {[%emt 0:15:56]} 17. Nd2 {[%emt 0:01:48]} Qc7 {[%emt 0:04:21]} 18. Ndf3 {[%emt 0:02:28]} dxc4 {[%emt 0:02:19]} 19. Bxc4 {[%emt 0:01:21]} b5 {[%emt 0:00:50]} 20. Bd3 {[%emt 0:00:40]} Nd5 {[%emt 0:02:30]} 21. Rc1 {[%emt 0:04:41]} Qd6 {[%emt 0:01:29]} 22. Qd2 {[%emt 0:10:07]} Red8 {[%emt 0:05:45]} 23. Rxc8 {[%emt 0:00:23]} Rxc8 {[%emt 0:01:47]} 24. Re1 {[%emt 0:02:35]} Nb4 {[%emt 0:07:13]} 25. Bb1 {[%emt 0:01:17]} Nxe5 {[%emt 0:00:40]} 26. dxe5 {[%emt 0:00:10]} Qxd2 {[%emt 0:00:18]} 27. Nxd2 {[%emt 0:00:07]} Nxa2 {[%emt 0:00:58]} 28. Ne4 {[%emt 0:02:40]} Bxe4 {[%emt 0:02:53]} 29. Bxe4 {[%emt 0:00:09]} Nb4 {[%emt 0:00:43]} 30. Kf1 {[%emt 0:04:12]} Bf8 {[%emt 0:05:37]} 31. Rd1 {[%emt 0:01:31]} h5 {[%emt 0:06:04]} 32. f3 {[%emt 0:03:00]} Be7 {[%emt 0:05:00]} 33. Rd7 {[%emt 0:01:37]} Bg5 {[%emt 0:00:35]} 34. Ba3 {[%emt 0:01:28]} Nc2 {[%emt 0:02:49]} 35. Bxc2 {[%emt 0:00:51]} Rxc2 {[%emt 0:00:05]} 36. Be7 {[%emt 0:00:08]} Bxe7 {[%emt 0:02:08]} 37. Rxe7 {[%emt 0:00:07]} Rc5 {[%emt 0:01:29]} 38. Ra7 {[%emt 0:00:18]} Rxe5 {[%emt 0:00:04]} 39. Rxa6 {[%emt 0:00:08]} Re3 {[%emt 0:00:01]} 40. Kf2 {[%emt 0:00:59]} Rxb3 {[%emt 0:00:02]} 41. Kg3 {[%emt 0:00:07]} Kg7 {[%emt 0:00:39]} 42. Rb6 {[%emt 0:00:25]} b4 {[%emt 0:00:13]} 43. Kf4 {[%emt 0:00:16]} Rb2 {[%emt 0:00:12]} 44. g3 {[%emt 0:00:16]} Rxh2 {[%emt 0:00:20]} 45. Rxb4 {[%emt 0:00:04]} Re2 {[%emt 0:00:14]} 46. Rb7 {[%emt 0:00:41]} Kf6 {[%emt 0:00:15]} 47. g4 {[%emt 0:00:20]} g5+ {[%emt 0:00:11]} 48. Kg3 {[%emt 0:00:05]} h4+ {[%emt 0:00:07]} 49. Kh3 {[%emt 0:00:11]} Rf2 {[%emt 0:00:27]} 50. Rb3 {[%emt 0:00:15]} Ke5 {[%emt 0:00:27]} 51. Rb5+ {[%emt 0:00:08]} Kf4 {[%emt 0:00:33]} 52. Rb4+ {[%emt 0:00:47]} Ke3 {[%emt 0:00:13]} 53. Rb3+ {[%emt 0:00:07]} Kd4 {[%emt 0:00:38]} 54. Ra3 {[%emt 0:00:12]} f5 {[%emt 0:00:12]} 55. Ra4+ {[%emt 0:00:21]} Ke5 {[%emt 0:00:26]} 56. Ra5+ {[%emt 0:00:08]} Kf6 {[%emt 0:01:51]} 57. Ra3 {[%emt 0:00:37]} Re2 {[%emt 0:03:30]} 58. Rd3 {[%emt 0:00:22]} Ke5 {[%emt 0:01:00]} 59. Ra3 {[%emt 0:00:20]} fxg4+ {[%emt 0:00:44]} 60. fxg4 {[%emt 0:00:15]} Kf4 {[%emt 0:01:12]} 61. Rf3+ {[%emt 0:01:30]} Ke4 {[%emt 0:00:03]} 62. Rf6 {[%emt 0:00:14]} Re3+ {[%emt 0:00:03]} 63. Kg2 {[%emt 0:00:07]} Rg3+ {[%emt 0:00:02]} 64. Kh2 {[%emt 0:00:18]} e5 {[%emt 0:00:06]} 65. Rg6 {[%emt 0:00:41]} Rxg4 {[%emt 0:00:05]} 66. Kh3 {[%emt 0:00:24]} Rg3+ {[%emt 0:00:18]} 67. Kh2 {[%emt 0:00:04]} Kf4 {[%emt 0:00:02]} 68. Rf6+ {[%emt 0:00:13]} Kg4 {[%emt 0:00:02]} 69. Re6 {[%emt 0:00:07]} Re3 {[%emt 0:00:07]} 70. Ra6 {[%emt 0:00:12]} Re2+ {[%emt 0:00:05]} 71. Kg1 {[%emt 0:00:25]} e4 {[%emt 0:00:43]} 72. Ra3 {[%emt 0:00:04]} e3 {[%emt 0:00:07]} 73. Ra4+ {[%emt 0:00:03]} Kg3 {[%emt 0:00:26]} 74. Ra1 {[%emt 0:00:04]} g4 {[%emt 0:01:16]} 75. Rb1 {[%emt 0:00:09]} Rd2 {[%emt 0:00:39]} 76. Kh1 {[%emt 0:00:13]} e2 {[%emt 0:00:18]} 77. Rb3+ {[%emt 0:00:03]} Kf2 {[%emt 0:00:05]} 78. Rf3+ {[%emt 0:00:25]} Kxf3 {[%emt 0:00:11]} 0-1

[Event "Moscow-ch Men 2019"]
[Site "Moscow"]
[Date "2019.04.05"]
[Round "7.8"]
[White "Savenkov, Konstantin"]
[Black "Dvalishvili, Pavel S."]
[Result "1/2-1/2"]
[ECO "B52"]
[WhiteElo "2373"]
[BlackElo "2407"]
[Annotator "RC"]
[PlyCount "183"]
[EventDate "2019.03.30"]
[EventType "swiss"]
[EventCountry "RUS"]
[SourceTitle "playchess.com"]
[Source "ChessBase"]
[SourceQuality "1"]
[TimeControl "5400+30"]

1. e4 {[%emt 0:04:28]} c5 {[%emt 0:00:00]} 2. Nf3 {[%emt 0:00:52]} d6 {[%emt 0:00:00]} 3. Bb5+ {[%emt 0:00:07]} Bd7 {[%emt 0:00:00]} 4. Bxd7+ {[%emt 0:00:06]} Nxd7 {[%emt 0:00:00]} 5. O-O {[%emt 0:00:10]} Ngf6 {[%emt 0:00:01]} 6. Qe2 {[%emt 0:00:24]} e6 {[%emt 0:00:26]} 7. c3 {[%emt 0:01:29]} Be7 {[%emt 0:00:10]} 8. d4 {[%emt 0:00:41]} cxd4 {[%emt 0:00:36]} 9. cxd4 {[%emt 0:00:05]} d5 {[%emt 0:00:10]} 10. e5 {[%emt 0:00:15]} Ne4 {[%emt 0:00:02]} 11. Ne1 {[%emt 0:00:29]} h6 {[%emt 0:00:23]} 12. f3 {[%emt 0:01:57]} Ng5 {[%emt 0:00:02]} 13. Nc3 {[%emt 0:00:27]} Qb6 {[%emt 0:02:37]} 14. f4 {[%emt 0:01:16]} Nh7 {[%emt 0:00:25]} 15. Be3 {[%emt 0:00:20]} O-O {[%emt 0:03:17]} 16. f5 {[%emt 0:07:00]} f6 {[%emt 0:00:30]} 17. Nd3 {[%emt 0:09:17]} fxe5 {[%emt 0:12:07]} 18. dxe5 {[%emt 0:01:24]} d4 {[%emt 0:01:36]} 19. fxe6 {[%emt 0:00:28]} Qxe6 {[%emt 0:03:13]} 20. Bxd4 {[%emt 0:02:52]} Qc4 {[%emt 0:00:30]} 21. Qe4 {[%emt 0:01:38]} Rxf1+ {[%emt 0:05:40]} 22. Rxf1 {[%emt 0:00:24]} Ng5 {[%emt 0:00:08]} 23. Qd5+ {[%emt 0:01:36]} Qxd5 {[%emt 0:00:01]} 24. Nxd5 {[%emt 0:00:06]} Bd8 {[%emt 0:00:16]} 25. N3f4 {[%emt 0:11:37]} Nf8 {[%emt 0:00:13]} 26. Rd1 {[%emt 0:04:28]} Nge6 {[%emt 0:00:32]} 27. Bc3 {[%emt 0:02:20]} Rc8 {[%emt 0:00:34]} 28. g3 {[%emt 0:03:10]} Kf7 {[%emt 0:01:41]} 29. Kg2 {[%emt 0:02:53]} g5 {[%emt 0:02:50]} 30. Nxe6 {[%emt 0:02:05]} Kxe6 {[%emt 0:00:46]} 31. Nb4 {[%emt 0:10:32]} Be7 {[%emt 0:06:13]} 32. Nc2 {[%emt 0:01:22]} Ng6 {[%emt 0:01:00]} 33. Re1 {[%emt 0:10:07]} Bc5 {[%emt 0:00:32]} 34. Re2 {[%emt 0:01:09]} g4 {[%emt 0:02:03]} 35. h3 {[%emt 0:01:19]} gxh3+ {[%emt 0:00:18]} 36. Kxh3 {[%emt 0:00:10]} Rd8 {[%emt 0:00:17]} 37. Ne1 {[%emt 0:03:01]} h5 {[%emt 0:02:27]} 38. Nf3 {[%emt 0:01:35]} Rd3 {[%emt 0:00:56]} 39. Kg2 {[%emt 0:00:20]} Bb6 {[%emt 0:05:33]} 40. a4 {[%emt 0:04:57]} a6 {[%emt 0:00:17]} 41. a5 {[%emt 0:01:08]} Bd8 {[%emt 0:00:11]} 42. Nd4+ {[%emt 0:01:48]} Kd5 {[%emt 0:00:17]} 43. Nf5 {[%emt 0:00:56]} Ne7 {[%emt 0:05:37]} 44. Nxe7+ {[%emt 0:04:51]} Bxe7 {[%emt 0:00:02]} 45. Re1 {[%emt 0:01:13]} h4 {[%emt 0:01:01]} 46. gxh4 {[%emt 0:00:06]} Bxh4 {[%emt 0:00:01]} 47. Rh1 {[%emt 0:00:09]} Rg3+ {[%emt 0:05:01]} 48. Kf1 {[%emt 0:00:19]} Be7 {[%emt 0:00:46]} 49. Rh7 {[%emt 0:01:08]} Ke6 {[%emt 0:00:37]} 50. Kf2 {[%emt 0:00:48]} Rg4 {[%emt 0:02:55]} 51. Rh6+ {[%emt 0:00:28]} Kd7 {[%emt 0:00:15]} 52. Kf3 {[%emt 0:00:19]} Rh4 {[%emt 0:00:27]} 53. Rg6 {[%emt 0:00:14]} Rc4 {[%emt 0:00:49]} 54. Ke3 {[%emt 0:01:06]} Rc6 {[%emt 0:03:14]} 55. Rg7 {[%emt 0:00:19]} Ke6 {[%emt 0:00:02]} 56. Kd4 {[%emt 0:00:29]} Rc7 {[%emt 0:02:06]} 57. Rg6+ {[%emt 0:02:06]} Kf5 {[%emt 0:00:01]} 58. Rh6 {[%emt 0:00:43]} Rd7+ {[%emt 0:00:44]} 59. Kc4 {[%emt 0:00:04]} Rc7+ {[%emt 0:00:01]} 60. Kd5 {[%emt 0:00:38]} Rd7+ {[%emt 0:00:01]} 61. Kc4 {[%emt 0:00:53]} Rc7+ {[%emt 0:00:01]} 62. Kb3 {[%emt 0:00:11]} Rc6 {[%emt 0:03:13]} 63. Rh7 {[%emt 0:00:43]} Ke6 {[%emt 0:02:37]} 64. Bb4 {[%emt 0:00:42]} Bd8 {[%emt 0:00:12]} 65. Bc3 {[%emt 0:01:20]} Bc7 {[%emt 0:00:25]} 66. Kb4 {[%emt 0:00:43]} Kd5 {[%emt 0:00:53]} 67. Rd7+ {[%emt 0:00:19]} Ke6 {[%emt 0:00:02]} 68. Rh7 {[%emt 0:00:05]} Kd5 {[%emt 0:00:01]} 69. Rd7+ {[%emt 0:01:04]} Ke6 {[%emt 0:00:01]} 70. Rd3 {[%emt 0:00:20]} b6 {[%emt 0:00:58]} 71. axb6 {[%emt 0:00:08]} Bxb6 {[%emt 0:01:59]} 72. Rh3 {[%emt 0:00:15]} Kd5 {[%emt 0:01:00]} 73. Rh8 {[%emt 0:00:37]} Bc7 {[%emt 0:00:52]} 74. Rh7 {[%emt 0:00:30]} Rc4+ {[%emt 0:01:14]} 75. Kb3 {[%emt 0:00:05]} Rc6 {[%emt 0:00:09]} 76. Re7 {[%emt 0:00:36]} Rc5 {[%emt 0:04:13]} 77. Kc2 {[%emt 0:00:37]} Ba5 {[%emt 0:02:57]} 78. Kd3 {[%emt 0:01:06]} Bxc3 {[%emt 0:02:06]} 79. bxc3 {[%emt 0:00:04]} a5 {[%emt 0:00:55]} 80. Re8 {[%emt 0:00:42]} Rc7 {[%emt 0:01:08]} 81. c4+ {[%emt 0:00:25]} Kc5 {[%emt 0:00:01]} 82. Ra8 {[%emt 0:00:41]} Rd7+ {[%emt 0:00:42]} 83. Kc3 {[%emt 0:00:38]} Kb6 {[%emt 0:00:01]} 84. Rb8+ {[%emt 0:00:07]} Kc6 {[%emt 0:00:14]} 85. Rc8+ {[%emt 0:00:55]} Kb6 {[%emt 0:00:25]} 86. Re8 {[%emt 0:00:34]} Rd1 {[%emt 0:00:58]} 87. e6 {[%emt 0:00:06]} Kc7 {[%emt 0:00:16]} 88. c5 {[%emt 0:00:27]} Re1 {[%emt 0:01:09]} 89. Kc4 {[%emt 0:01:04]} a4 {[%emt 0:00:12]} 90. Kb4 {[%emt 0:00:41]} Re4+ {[%emt 0:00:28]} 91. Kb5 {[%emt 0:00:11]} a3 {[%emt 0:00:14]} 92. Ra8 {[%emt 0:00:50]} 1/2-1/2